fUSD/lending_fUSD_20240801
["ID","MTS","AMOUNT","RATE_DAILY","PERIOD"]
[333775402,1722479447176,-197.5662,0.000107,2]
[333775403,1722479447186,-4968.57982875,0.00011,2]
[333775404,1722479447199,-1283.67,0.00011,2]
[333775405,1722479447210,-3101.51214646,0.00011,2]
[333775406,1722479447221,-341.935,0.00011,2]
[333775407,1722479447234,-319.0,0.00011,2]
[333775408,1722479447245,-834.27412545,0.00011,2]
[333775409,1722479447256,-1593.24999998,0.00011,2]
[333775410,1722479447359,-1064.73000001,0.00011,2]
[333775411,1722479447371,-1844.9999732,0.00011,2]
[333775412,1722479447382,-2798.27075187,0.00011,2]
[333775413,1722479447395,-388.52622162,0.00011,2]
[333775429,1722479447547,-811.0,0.0001096,2]
[333775431,1722479447557,-4067.86340798,0.00011,2]
[333775433,1722479447569,-623.25699325,0.00011,2]
[333775490,1722480631718,-160.23,8.219e-05,2]
[333775492,1722480631728,-1023.5,8.219e-05,2]
[333775494,1722480631739,-250.0,9.411e-05,2]
[333775497,1722480631748,-192.23514294,9.411e-05,2]
[333775500,1722480631759,-257.51485706,9.411e-05,2]
[333775502,1722480631769,-743.86977583,9.43e-05,2]
[333775521,1722480632209,-24.57022417,9.43e-05,2]
[333775522,1722480632218,-150.0,9.452e-05,2]
[333775523,1722480632227,-300.0,9.454e-05,2]
[333775524,1722480632239,-6.56214552,9.454e-05,2]
[333775525,1722480632249,-293.43785448,9.454e-05,2]
[333775526,1722480632260,-33.96019931,9.455e-05,2]
[333775527,1722480632271,-1695.26839713,9.455e-05,2]
[333775528,1722480632282,-804.43551989,9.455e-05,2]
[333775529,1722480632295,-10632.73588367,9.455e-05,2]
[333775530,1722480632304,-200.01,9.465e-05,2]
[333775531,1722480632314,-1236.79,9.479e-05,2]
[333775532,1722480632323,-184.32,9.485e-05,2]
[333775533,1722480632332,-9036.45,9.488e-05,2]
[333775534,1722480632342,-815.68,9.514e-05,2]
[333775535,1722480632351,-242.83,9.592e-05,2]
[333775536,1722480632360,-169.78,9.877e-05,2]
[333775537,1722480632369,-169.78,9.885e-05,2]
[333775538,1722480632378,-169.78,9.893e-05,2]
[333775539,1722480632387,-821.7,9.893e-05,2]
[333775540,1722480632397,-169.78,9.902e-05,2]
[333775541,1722480632406,-169.78,9.91e-05,2]
[333775543,1722480632415,-169.78,9.918e-05,2]
[333775545,1722480632424,-169.78,9.926e-05,2]
[333775546,1722480632434,-175.42,9.946e-05,2]
[333775548,1722480632443,-160.23,0.00010046,2]
[333775550,1722480632452,-500.0,0.000103,3]
[333775552,1722480632461,-150.0,0.00010399,2]
[333775553,1722480632471,-420.0,0.00010399,2]
[333775554,1722480632480,-393.04746183,0.00010399,2]
[333775555,1722480632493,-26.95253817,0.00010399,2]
[333775556,1722480632504,-1100.0,0.000104,3]
[333775557,1722480632514,-1023.5,0.00010447,2]
[333775558,1722480632523,-9700.0,0.000105,2]
[333775559,1722480632533,-1600.0,0.000105,3]
[333775560,1722480632542,-753.38422047,0.0001059,2]
[333775561,1722480632552,-2200.0,0.000106,3]
[333775562,1722480632562,-2512.280582,0.00010623,2]
[333775563,1722480632573,-163.983566,0.00010623,2]
[333775565,1722480632583,-2282.644191,0.00010623,2]
[333775567,1722480632592,-181.117558,0.00010623,2]
[333775569,1722480632602,-105.41580189,0.00010671,2]
[333775571,1722480632614,-78.90419811,0.00010671,2]
[333775573,1722480632624,-183.45197092,0.0001068,2]
[333775575,1722480632633,-202.79474576,0.0001068,2]
[333775577,1722480632646,-94.25465424,0.0001068,2]
[333775579,1722480632656,-1835.2796358,0.000107,3]
[333775581,1722480632669,-500.0,0.000107,3]
[333775583,1722480632680,-464.7203642,0.000107,3]
[333775585,1722480632689,-815.68,0.00010703,2]
[333775587,1722480632698,-2512.280582,0.00010756,2]
[333775589,1722480632708,-2282.644191,0.00010756,2]
[333775591,1722480632717,-2133.6749328,0.0001078,2]
[333775593,1722480632728,-1463.09572534,0.0001078,2]
[333775597,1722480632801,-6400.1,0.0001078,2]
[333775598,1722480637853,-22168.03844186,0.0001078,2]
[333775599,1722480637862,-9220.29715898,0.0001078,2]
[333775600,1722480638056,-25555.09494102,0.0001078,2]
[333775601,1722480638067,-23720.7561,0.0001078,2]
[333775602,1722480638077,-242.83,0.00010791,2]
[333775603,1722480638087,-500.0,0.000108,3]
[333775604,1722480638097,-2512.280582,0.00010888,2]
[333775605,1722480638107,-2282.644191,0.00010888,2]
[333775607,1722480638116,-507.5624,0.0001089,2]
[333775609,1722480638126,-3384.20922645,0.00010899,2]
[333775611,1722480638135,-3384.20922643,0.00010899,2]
[333775612,1722480638145,-1808.56778876,0.00010899,2]
[333775613,1722480638154,-1808.56778876,0.00010899,2]
[333775614,1722480638163,-2190.292822,0.000109,2]
[333775615,1722480638173,-6656.8501,0.000109,2]
[333775616,1722480638182,-364.8773,0.000109,2]
[333775617,1722480638192,-163.42806171,0.000109,2]
[333775618,1722480638201,-500.0,0.000109,3]
[333775619,1722480638211,-820.30124136,0.000109,2]
[333775620,1722480638221,-187.93023277,0.000109,2]
[333775621,1722480638231,-7759.95849252,0.000109,2]
[333775622,1722480638241,-500.0,0.00010911,2]
[333775623,1722480638250,-500.0,0.00010912,2]
[333775624,1722480638260,-3384.20922643,0.00010937,2]
[333775625,1722480638269,-1808.56778876,0.00010937,2]
[333775626,1722480638279,-300.24,0.00010947,2]
[333775627,1722480638289,-250.0,0.00010959,2]
[333775628,1722480638298,-1255.0,0.0001096,2]
[333775629,1722480638308,-1105.645,0.0001096,2]
[333775630,1722480638317,-397.487,0.0001096,2]
[333775631,1722480638327,-347.348,0.0001096,2]
[333775632,1722480638337,-150.0,0.0001096,2]
[333775633,1722480638347,-921.589,0.0001096,2]
[333775634,1722480638357,-3207.54,0.0001096,2]
[333775635,1722480638367,-40643.54373905,0.0001099,2]
[333775637,1722480638377,-11567.1457287,0.00010998,2]
[333775639,1722480638387,-494.4732366,0.00010998,2]
[333775641,1722480638396,-1927.0603629,0.00010998,2]
[333775643,1722480638406,-14220.4912564,0.00010998,2]
[333775644,1722480638416,-2010.2537,0.00010999,2]
[333775645,1722480638426,-1000.0,0.00010999,2]
[333775646,1722480638435,-1000.0,0.00010999,2]
[333775647,1722480638445,-1000.0,0.00010999,2]
[333775648,1722480638454,-1000.8197,0.00010999,2]
[333775649,1722480638464,-760.0,0.00011,2]
[333775650,1722480638474,-544188.55847534,0.00011,2]
[333775651,1722480638859,-7346.52340112,0.00011,2]
[333775652,1722480638871,-740.98014685,0.00011,2]
[333775653,1722480638883,-255.05070083,0.00011,2]
[333775654,1722480638895,-720.7119,0.00011,2]
[333775655,1722480638911,-4102.02946677,0.00011,2]
[333775656,1722480638923,-865.69,0.00011,2]
[333775657,1722480638935,-3253.8447,0.00011,2]
[333775658,1722480640007,-640.64,0.00011,2]
[333775659,1722480640019,-86825.49926076,0.00011,2]
[333775660,1722480640030,-42926.52658015,0.00011,2]
[333775661,1722480640041,-790.57634713,0.00011,2]
[333775662,1722480640053,-42530.769,0.00011,2]
[333775663,1722480640064,-278.00355478,0.00011,2]
[333775664,1722480640327,-23293.4783716,0.00011,2]
[333775665,1722480640339,-1492.40064298,0.00011,2]
[333775666,1722480640353,-2217.27700097,0.00011,2]
[333775667,1722480640364,-257.984,0.00011,2]
[333775668,1722480640376,-443.0,0.00011,2]
[333775669,1722480641801,-66366.52709429,0.00011,2]
[333775671,1722480641812,-490.39151482,0.00011,2]
[333775776,1722480642940,-468.04802639,0.00011,2]
[333775778,1722480642951,-4000.0,0.00011,2]
[333775780,1722480642963,-2567.97471534,0.00011,2]
[333775804,1722480643204,-8719.15030239,0.00011,2]
[333775823,1722480643388,-1281.48923992,0.00011,2]
[333776272,1722480647924,-729.0,0.00011,2]
[333776274,1722480647934,-218241.63968251,0.00011,2]
[333776278,1722480647964,-640.3397,0.00011,2]
[333776279,1722480647974,-7834.78375231,0.00011,2]
[333776281,1722480647986,-4265.68,0.00011,2]
[333776283,1722480648000,-422.91126348,0.00011,2]
[333776285,1722480648010,-3086.9317394,0.00011,2]
[333776287,1722480648022,-109163.12438933,0.00011,2]
[333776312,1722480648301,-739.2528329,0.00011,2]
[333776314,1722480648312,-9214.26318376,0.00011,2]
[333776316,1722480648324,-19725.48396326,0.00011,2]
[333776318,1722480648336,-6623.97908191,0.00011,2]
[333776320,1722480648348,-1592.51588198,0.00011,2]
[333776322,1722480648360,-1599.5,0.00011,2]
[333776349,1722480771608,450.0,0.00025,60]
[333776350,1722480793699,1000.0,0.00024932,120]
[333776374,1722481312306,154626.4812835,0.00025,60]
[333776378,1722481513595,10945.75,0.000205,120]
[333776386,1722481832994,-160.23,8.219e-05,2]
[333776387,1722481833004,-1014.88,8.219e-05,2]
[333776388,1722481833014,-489.41,9.719e-05,2]
[333776389,1722481833024,-19552.81389431,9.768e-05,2]
[333776390,1722481833034,-300.0,9.768e-05,2]
[333776391,1722481833044,-17344.07,9.769e-05,2]
[333776392,1722481833054,-172.86,9.807e-05,2]
[333776393,1722481833064,-250.0,9.823e-05,2]
[333776394,1722481833074,-182.12,9.823e-05,2]
[333776395,1722481833084,-6583.2,9.88e-05,2]
[333776396,1722481833093,-510.59,9.885e-05,2]
[333776397,1722481833103,-1533.27840165,9.9e-05,2]
[333776398,1722481833113,-254.3,9.914e-05,2]
[333776399,1722481833122,-372.21945969,0.0001,2]
[333776400,1722481833132,-1014.88,0.00010468,2]
[333776401,1722481833142,-7233.0,0.00010567,2]
[333776402,1722481833152,-643.314445,0.00010623,2]
[333776403,1722481833161,-163.983566,0.00010623,2]
[333776404,1722481833171,-792.587514,0.00010623,2]
[333776405,1722481833181,-150.0,0.00010699,2]
[333776406,1722481833190,-15441.7217,0.000107,2]
[333776407,1722481833200,-259.6107,0.000107,2]
[333776408,1722481833210,-420.0,0.00010745,2]
[333776409,1722481833220,-643.314445,0.00010756,2]
[333776410,1722481833229,-792.587514,0.00010756,2]
[333776411,1722481833239,-41030.48372884,0.000108,2]
[333776412,1722481833251,-22248.28462863,0.000108,2]
[333776413,1722481833263,-4374.41757965,0.000108,2]
[333776414,1722481833276,-14044.72447286,0.000108,2]
[333776415,1722481833288,-18302.08959002,0.000108,2]
[333776416,1722481833298,-13652.91040998,0.000108,2]
[333776417,1722481833309,-539.12992939,0.000108,2]
[333776418,1722481833321,-1146.90147251,0.000108,2]
[333776419,1722481833334,-2300.0,0.000108,2]
[333776420,1722481833347,-345.5,0.000108,2]
[333776421,1722481833550,-16706.84535004,0.000108,2]
[333776422,1722481833563,-7526.18825408,0.000108,2]
[333776423,1722481833574,-1020.14524379,0.000108,2]
[333776425,1722481837920,-4476.6188299,0.000108,2]
[333776427,1722481838098,-3293.76008386,0.000108,2]
[333776429,1722481838111,-361.36140716,0.000108,2]
[333776430,1722481838123,-2679.95201334,0.000108,2]
[333776431,1722481839289,-339.86692937,0.00010415,2]
[333776432,1722481839299,-98020.81360595,0.000108,2]
[333776433,1722481839309,-150.0,0.000108,2]
[333776434,1722481839318,-643.314445,0.00010888,2]
[333776435,1722481839328,-792.587514,0.00010888,2]
[333776436,1722481839338,-964.85537875,0.0001089,2]
[333776437,1722481839348,-1265.99745215,0.00010899,2]
[333776438,1722481839357,-1265.99745213,0.00010899,2]
[333776439,1722481839367,-167.1245,0.000109,2]
[333776440,1722481839376,-1259.3249,0.000109,2]
[333776441,1722481839386,-584.51603395,0.000109,2]
[333776442,1722481839396,-163.42806171,0.000109,2]
[333776443,1722481839405,-1618.5315,0.000109,2]
[333776444,1722481839415,-546.86749424,0.000109,2]
[333776445,1722481839424,-500.0,0.00010912,2]
[333776446,1722481839434,-489.41,0.00010934,2]
[333776447,1722481839444,-1265.99745213,0.00010944,2]
[333776448,1722481839454,-1000.0,0.00010959,2]
[333776449,1722481839465,-250.0,0.00010959,2]
[333776450,1722481839475,-150.0,0.00010959,2]
[333776451,1722481839484,-823.69,0.00010959,2]
[333776452,1722481839495,-150.0,0.0001096,2]
[333776453,1722481839505,-21742.7807536,0.00010998,2]
[333776454,1722481839515,-1428.288494,0.00010998,2]
[333776455,1722481839524,-7431.5899866,0.00010998,2]
[333776456,1722481839534,-353.2057787,0.00010998,2]
[333776457,1722481839544,-162.0,0.00010999,2]
[333776458,1722481839554,-5405.09536694,0.00010999,2]
[333776459,1722481839563,-500.0,0.00010999,2]
[333776460,1722481839573,-500.0,0.00010999,2]
[333776461,1722481839583,-500.0,0.00010999,2]
[333776462,1722481839593,-500.0,0.00010999,2]
[333776463,1722481839604,-500.0,0.00010999,2]
[333776464,1722481839614,-500.0,0.00010999,2]
[333776465,1722481839624,-308.25372234,0.00010999,2]
[333776466,1722481839634,-500.0,0.00010999,2]
[333776467,1722481839644,-500.0,0.00010999,2]
[333776468,1722481839654,-500.0,0.00010999,2]
[333776469,1722481839664,-500.0,0.00010999,2]
[333776470,1722481839673,-500.0,0.00010999,2]
[333776471,1722481839684,-500.0,0.00010999,2]
[333776472,1722481839693,-500.0,0.00010999,2]
[333776473,1722481839703,-500.0,0.00010999,2]
[333776474,1722481839714,-500.0,0.00010999,2]
[333776475,1722481839723,-500.0,0.00010999,2]
[333776476,1722481839733,-500.0,0.00010999,2]
[333776477,1722481839746,-417.21910812,0.00010999,2]
[333776478,1722481839755,-500.0,0.00010999,2]
[333776479,1722481839764,-255.65758109,0.00010999,2]
[333776480,1722481839774,-500.0,0.00010999,2]
[333776481,1722481839784,-500.0,0.00010999,2]
[333776482,1722481839794,-500.0,0.00010999,2]
[333776483,1722481839804,-197.32988883,0.00010999,2]
[333776484,1722481839814,-541.16283243,0.00010999,2]
[333776485,1722481839823,-642.18121336,0.00010999,2]
[333776486,1722481839833,-500.0,0.00010999,2]
[333776487,1722481839843,-500.0,0.00010999,2]
[333776488,1722481839853,-500.0,0.00010999,2]
[333776489,1722481839863,-500.0,0.00010999,2]
[333776490,1722481839872,-500.0,0.00010999,2]
[333776491,1722481839885,-500.0,0.00010999,2]
[333776492,1722481839895,-500.0,0.00010999,2]
[333776493,1722481839905,-500.0,0.00010999,2]
[333776494,1722481839914,-500.0,0.00010999,2]
[333776495,1722481839925,-500.0,0.00010999,2]
[333776496,1722481839935,-500.0,0.00010999,2]
[333776497,1722481839945,-500.0,0.00010999,2]
[333776498,1722481839955,-500.0,0.00010999,2]
[333776499,1722481839967,-500.0,0.00010999,2]
[333776500,1722481839977,-500.0,0.00010999,2]
[333776501,1722481839987,-500.0,0.00010999,2]
[333776502,1722481840000,-500.0,0.00010999,2]
[333776503,1722481840009,-500.0,0.00010999,2]
[333776504,1722481840019,-500.0,0.00010999,2]
[333776505,1722481840029,-500.0,0.00010999,2]
[333776506,1722481840040,-500.0,0.00010999,2]
[333776507,1722481840049,-500.0,0.00010999,2]
[333776508,1722481840059,-500.0,0.00010999,2]
[333776509,1722481840069,-500.0,0.00010999,2]
[333776510,1722481840079,-500.0,0.00010999,2]
[333776511,1722481840088,-500.0,0.00010999,2]
[333776512,1722481840098,-500.0,0.00010999,2]
[333776513,1722481840108,-500.0,0.00010999,2]
[333776514,1722481840117,-500.0,0.00010999,2]
[333776515,1722481840127,-300.0,0.00010999,2]
[333776516,1722481840137,-500.0,0.00010999,2]
[333776517,1722481840147,-500.0,0.00010999,2]
[333776518,1722481840157,-500.0,0.00010999,2]
[333776519,1722481840166,-500.0,0.00010999,2]
[333776520,1722481840176,-500.0,0.00010999,2]
[333776521,1722481840186,-500.0,0.00010999,2]
[333776522,1722481840195,-500.0,0.00010999,2]
[333776523,1722481840204,-633.65923764,0.00010999,2]
[333776524,1722481840214,-500.0,0.00010999,2]
[333776525,1722481840224,-500.0,0.00010999,2]
[333776526,1722481840233,-500.0,0.00010999,2]
[333776527,1722481840244,-500.0,0.00010999,2]
[333776528,1722481840254,-500.0,0.00010999,2]
[333776529,1722481840264,-500.0,0.00010999,2]
[333776530,1722481840274,-500.0,0.00010999,2]
[333776531,1722481840284,-500.0,0.00010999,2]
[333776532,1722481840293,-500.0,0.00010999,2]
[333776533,1722481840304,-500.0,0.00010999,2]
[333776534,1722481840313,-579.82564399,0.00010999,2]
[333776535,1722481840323,-500.0,0.00010999,2]
[333776536,1722481840336,-500.0,0.00010999,2]
[333776537,1722481840346,-500.0,0.00010999,2]
[333776538,1722481840355,-500.0,0.00010999,2]
[333776539,1722481840367,-500.0,0.00010999,2]
[333776540,1722481840377,-500.0,0.00010999,2]
[333776541,1722481840387,-500.0,0.00010999,2]
[333776542,1722481840396,-500.0,0.00010999,2]
[333776543,1722481840407,-500.0,0.00010999,2]
[333776544,1722481840417,-500.0,0.00010999,2]
[333776545,1722481840426,-500.0,0.00010999,2]
[333776546,1722481840435,-189.42767301,0.00010999,2]
[333776547,1722481840449,-310.57232699,0.00010999,2]
[333776548,1722481840459,-500.0,0.00010999,2]
[333776549,1722481840470,-500.0,0.00010999,2]
[333776550,1722481840480,-500.0,0.00010999,2]
[333776551,1722481840490,-500.0,0.00010999,2]
[333776552,1722481840500,-500.0,0.00010999,2]
[333776553,1722481840509,-500.0,0.00010999,2]
[333776554,1722481840519,-500.0,0.00010999,2]
[333776555,1722481840529,-250.0,0.00010999,2]
[333776556,1722481840539,-500.0,0.00010999,2]
[333776557,1722481840548,-500.0,0.00010999,2]
[333776558,1722481840558,-602.98256441,0.00010999,2]
[333776559,1722481840568,-500.0,0.00010999,2]
[333776560,1722481840578,-500.0,0.00010999,2]
[333776561,1722481840587,-500.0,0.00010999,2]
[333776562,1722481840597,-359.91524101,0.00010999,2]
[333776563,1722481840607,-500.0,0.00010999,2]
[333776564,1722481840616,-535.82720343,0.00011,2]
[333776565,1722481840629,-125.17279657,0.00011,2]
[333776566,1722481840639,-398789.07057619,0.00011,2]
[333776568,1722481840649,-2000.0,0.00011,2]
[333776570,1722481840658,-2000.0,0.00011,2]
[333776572,1722481840668,-2000.0,0.00011,2]
[333776574,1722481840678,-500.0,0.00011,2]
[333776576,1722481840687,-214.0,0.00011,2]
[333776578,1722481840696,-214.0,0.00011,2]
[333776580,1722481840705,-214.0,0.00011,2]
[333776582,1722481840714,-214.0,0.00011,2]
[333776583,1722481840724,-214.0,0.00011,2]
[333776585,1722481840733,-214.0,0.00011,2]
[333776587,1722481840746,-214.0,0.00011,2]
[333776589,1722481840755,-214.0,0.00011,2]
[333776602,1722481841089,-214.0,0.00011,2]
[333776603,1722481841098,-214.0,0.00011,2]
[333776604,1722481841108,-500.0,0.00011,2]
[333776606,1722481841118,-250.0,0.00011,2]
[333776608,1722481841128,-500.0,0.00011,2]
[333776611,1722481841139,-582.04,0.00011,2]
[333776612,1722481841148,-673537.7483438,0.00011,2]
[333776615,1722481841161,-11469.10262463,0.00011,2]
[333776617,1722481841172,-37565.93257054,0.00011,2]
[333776619,1722481841184,-9551.3770682,0.00011,2]
[333776621,1722481841196,-28078.1376725,0.00011,2]
[333776624,1722481841207,-132494.03507608,0.00011,2]
[333776626,1722481841219,-297.73623329,0.00011,2]
[333776644,1722481841388,-520.79433615,0.00011,2]
[333776646,1722481841400,-308.66866659,0.00011,2]
[333776649,1722481841411,-533.8903992,0.00011,2]
[333776651,1722481841423,-740890.34018578,0.00011,2]
[333776691,1722481841798,-198.3067,9.669e-05,2]
[333776693,1722481841808,-63769.16780047,0.00011,2]
[333776695,1722481841819,-1191.06342826,0.00011,2]
[333776697,1722481841833,-256.62236691,0.00011,2]
[333776700,1722481841845,-440.59590512,0.00011,2]
[333776718,1722481842026,-305.65036,0.00011,2]
[333776720,1722481842038,-1336.23941519,0.00011,2]
[333776722,1722481842049,-3698.49104601,0.00011,2]
[333776724,1722481842060,-760.74789201,0.00011,2]
[333776859,1722481843432,-25598.74214781,0.00011,2]
[333776861,1722481843444,-549.76855079,0.00011,2]
[333776863,1722481843457,-302.0,0.00011,2]
[333777024,1722481847409,-1279.7603,0.00011,2]
[333777025,1722481847694,-5989.63281189,0.00011,2]
[333777026,1722481847706,-641.48,0.00011,2]
[333777027,1722481847718,-584.74,0.00011,2]
[333777028,1722481847731,-3070.60000002,0.00011,2]
[333777029,1722481847742,-6623.5,0.00011,2]
[333777030,1722481847765,-956.45,0.00011,2]
[333777031,1722481847777,-255.28036245,0.00011,2]
[333777032,1722481847790,-316.01403212,0.00011,2]
[333777033,1722481847975,-2176.89212476,0.00011,2]
[333777034,1722481847987,-351.9542482,0.00011,2]
[333777043,1722482595313,-170.36896615,8.219e-05,2]
[333777044,1722482595335,-542.3599513,8.219e-05,2]
[333777045,1722482618381,-1005.22,8.219e-05,2]
[333777046,1722482618414,-160.3,8.219e-05,2]
[333777048,1722482646029,1414.75108255,8.219e-05,2]
[333777130,1722483032931,-300.0,8.178e-05,2]
[333777131,1722483032976,-410.834408,8.178e-05,2]
[333777132,1722483032986,-300.0,8.218e-05,2]
[333777133,1722483032996,-150.0,8.218e-05,2]
[333777134,1722483033005,-44222.55475354,8.219e-05,2]
[333777135,1722483033015,-218.22861641,8.219e-05,2]
[333777136,1722483033026,-305.0101736,8.219e-05,2]
[333777137,1722483033036,-2563.7675372,8.219e-05,2]
[333777138,1722483033045,-3068.13856627,8.219e-05,2]
[333777139,1722483033055,-1492.63076583,8.219e-05,2]
[333777140,1722483033064,-2959.86004751,8.219e-05,2]
[333777141,1722483033074,-425.56217622,8.219e-05,2]
[333777142,1722483033083,-227.57356757,8.219e-05,2]
[333777143,1722483033092,-18824.96530891,8.219e-05,2]
[333777144,1722483033102,-954.95,8.219e-05,2]
[333777145,1722483033112,-420.0,9.04e-05,2]
[333777146,1722483033121,-499.99,9.67e-05,2]
[333777147,1722483033130,-5840.91,9.749e-05,2]
[333777148,1722483033141,-3291.6,9.803e-05,2]
[333777149,1722483033151,-250.0,9.811e-05,2]
[333777150,1722483033160,-1000.0,9.845e-05,2]
[333777151,1722483033170,-587.0,9.944e-05,2]
[333777152,1722483033180,-64254.29637648,9.962e-05,2]
[333777153,1722483033189,-371.61635124,0.0001,2]
[333777154,1722483033199,-1858.0375165,0.0001,2]
[333777155,1722483033208,-218.22,0.00010064,2]
[333777156,1722483033218,-954.95,0.00010473,2]
[333777157,1722483033227,-17636.7191,0.000107,2]
[333777158,1722483033237,-3293.7601,0.00010898,2]
[333777161,1722483033250,-216.2027,0.00010899,2]
[333777164,1722483033264,-886.1982165,0.00010899,2]
[333777167,1722483033280,-187.93023277,0.000109,2]
[333777170,1722483033290,-163.42806171,0.000109,2]
[333777173,1722483033300,-212.71383416,0.000109,2]
[333777175,1722483033310,-364.57832948,0.000109,2]
[333777177,1722483033319,-1015.0,0.000109,2]
[333777179,1722483033329,-7500.0,0.000109,2]
[333777181,1722483033339,-823.0,0.00010938,2]
[333777183,1722483033349,-946.40594356,0.0001095,2]
[333777185,1722483033358,-250.0,0.00010959,2]
[333777187,1722483033368,-806.27,0.00010959,2]
[333777189,1722483033378,-5803.17,0.00010959,2]
[333777191,1722483033388,-2704.182,0.0001096,2]
[333777193,1722483033397,-150.0,0.0001096,2]
[333777195,1722483033407,-43326.67571996,0.0001099,2]
[333777197,1722483033417,-563.0219225,0.00010998,2]
[333777199,1722483033428,-1192.9779646,0.00010998,2]
[333777200,1722483033437,-6207.2355363,0.00010998,2]
[333777201,1722483033448,-226.2471603,0.00010998,2]
[333777202,1722483033457,-12974.9089595,0.00010998,2]
[333777203,1722483033466,-478.2558579,0.00010998,2]
[333777204,1722483033476,-145108.71792609,0.00010998,2]
[333777205,1722483033486,-3243.5796126,0.00010998,2]
[333777206,1722483033496,-165.01507447,0.00010999,2]
[333777207,1722483033517,-1000.0,0.00010999,2]
[333777208,1722483033527,-6767.08912398,0.00010999,2]
[333777209,1722483033536,-637.55808702,0.00010999,2]
[333777210,1722483033546,-500.0,0.00010999,2]
[333777211,1722483033555,-389.50419194,0.00010999,2]
[333777212,1722483033564,-500.0,0.00010999,2]
[333777213,1722483033574,-500.0,0.00010999,2]
[333777214,1722483033583,-500.0,0.00010999,2]
[333777215,1722483033593,-500.0,0.00010999,2]
[333777216,1722483033602,-500.0,0.00010999,2]
[333777217,1722483033612,-500.0,0.00010999,2]
[333777218,1722483033621,-500.0,0.00010999,2]
[333777219,1722483033631,-500.0,0.00010999,2]
[333777220,1722483033641,-183.23314245,0.00010999,2]
[333777221,1722483033651,-600.0,0.00010999,2]
[333777222,1722483033660,-500.0,0.00010999,2]
[333777223,1722483033670,-500.0,0.00010999,2]
[333777224,1722483033679,-500.0,0.00010999,2]
[333777225,1722483033688,-500.0,0.00010999,2]
[333777226,1722483033698,-500.0,0.00010999,2]
[333777227,1722483033707,-500.0,0.00010999,2]
[333777228,1722483033717,-500.0,0.00010999,2]
[333777229,1722483033726,-500.0,0.00010999,2]
[333777230,1722483033736,-500.0,0.00010999,2]
[333777231,1722483033746,-500.0,0.00010999,2]
[333777232,1722483033764,-500.0,0.00010999,2]
[333777233,1722483033774,-500.0,0.00010999,2]
[333777234,1722483033783,-500.0,0.00010999,2]
[333777235,1722483033793,-500.0,0.00010999,2]
[333777236,1722483033803,-291.86592376,0.00010999,2]
[333777237,1722483033813,-500.0,0.00010999,2]
[333777238,1722483033822,-500.0,0.00010999,2]
[333777239,1722483033832,-500.0,0.00010999,2]
[333777240,1722483033841,-500.0,0.00010999,2]
[333777241,1722483033851,-500.0,0.00010999,2]
[333777242,1722483033860,-500.0,0.00010999,2]
[333777243,1722483033870,-500.0,0.00010999,2]
[333777244,1722483033879,-500.0,0.00010999,2]
[333777245,1722483033892,-500.0,0.00010999,2]
[333777246,1722483033901,-500.0,0.00010999,2]
[333777247,1722483033910,-500.0,0.00010999,2]
[333777248,1722483033920,-500.0,0.00010999,2]
[333777249,1722483033930,-500.0,0.00010999,2]
[333777250,1722483033940,-500.0,0.00010999,2]
[333777251,1722483033949,-500.0,0.00010999,2]
[333777252,1722483033958,-500.0,0.00010999,2]
[333777253,1722483033968,-250.0,0.00010999,2]